fUSD/lending_fUSD_20251203
["ID","MTS","AMOUNT","RATE_DAILY","PERIOD"]
[396208645,1764805855624,-500.0,0.00035975,2]
[396208646,1764805855634,-163.46836242,0.00036,120]
[396208647,1764805855644,-220.57,0.00036133,2]
[396208648,1764805855653,-500.0,0.00036164,120]
[396208649,1764805855663,-156.7,0.00036237,2]
[396208650,1764805855672,-300.0,0.00036472,2]
[396208651,1764805855681,-220.56,0.00036867,2]
[396208652,1764805855690,-12277.61,0.0003688,2]
[396208653,1764805855700,-832.16259132,0.00036891,2]
[396208654,1764805855710,-500.0,0.00036986,120]
[396208655,1764805855719,-248.50668655,0.000372,120]
[396208656,1764805855728,-153.73,0.00037398,2]
[396208657,1764805855738,-365.71441435,0.00037591,30]
[396208658,1764805855747,-300.0,0.00037591,30]
[396208659,1764805855757,-365.71441435,0.00037591,30]
[396208660,1764805855765,-385.00230327,0.00037591,30]
[396208661,1764805855775,-365.71441435,0.00037591,30]
[396208662,1764805855784,-365.71441435,0.00037591,30]
[396208663,1764805855794,-192.02,0.000376,14]
[396208664,1764805855803,-1341.66,0.000376,2]
[396208665,1764805855812,-1187.0,0.00037648,2]
[396208666,1764805855822,-1187.0,0.00037693,120]
[396208667,1764805855831,-500.0,0.00037808,120]
[396208668,1764805855840,-311.1,0.00037841,2]
[396208669,1764805855850,-3172.09718186,0.00037961,2]
[396208670,1764805855859,-1187.0,0.00037962,7]
[396208671,1764805855869,-356.77596454,0.00038,4]
[396208672,1764805855878,-1187.0,0.00038086,2]
[396208673,1764805855888,-986.94743339,0.00038102,2]
[396208674,1764805855897,-1298.0,0.00038136,2]
[396208675,1764805855907,-156.7335532,0.00038143,7]
[396208676,1764805855916,-1298.0,0.00038193,2]
[396208677,1764805855926,-1187.0,0.00038203,2]
[396208678,1764805855936,-1187.0,0.00038255,2]
[396208679,1764805855945,-600.0,0.00038356,30]
[396208680,1764805855955,-500.0,0.00038431,14]
[396208681,1764805855964,-1187.0,0.00038561,2]
[396208682,1764805855974,-286.2108172,0.00038584,7]
[396208683,1764805855983,-500.0,0.0003863,120]
[396208684,1764805855993,-600.0,0.0003863,30]
[396208685,1764805856005,-443.31,0.000389,14]
[396208686,1764805856016,-354.0,0.000389,2]
[396208687,1764805856026,-971.0,0.000389,2]
[396208688,1764805856035,-3975.12,0.00038904,2]
[396208689,1764805856044,-600.0,0.00038904,30]
[396208690,1764805856053,-400.0,0.0003899,30]
[396208691,1764805856062,-1999.97,0.00039,2]
[396208692,1764805856072,-870.7,0.00039,2]
[396208693,1764805856081,-600.0,0.00039178,30]
[396208694,1764805856091,-1187.0,0.00039186,7]
[396208695,1764805856100,-192.02,0.000392,14]
[396208696,1764805856110,-322.6107,0.0003921,2]
[396208697,1764805856120,-1300.0,0.00039344,2]
[396208698,1764805856131,-1187.0,0.00039362,2]
[396208699,1764805856140,-1187.0,0.00039371,2]
[396208700,1764805856149,-633.16890719,0.00039452,120]
[396208701,1764805856159,-600.0,0.00039452,30]
[396208702,1764805856168,-1187.0,0.00039471,2]
[396208703,1764805856179,-507.35,0.00039654,2]
[396208704,1764805856189,-150.0,0.00039673,2]
[396208705,1764805856198,-600.0,0.00039726,30]
[396208706,1764805856208,-538.79,0.00039798,30]
[396208707,1764805856220,-1298.0,0.000398,120]
[396208708,1764805856229,-600.0,0.0004,30]
[396208709,1764805856239,-3003.74715692,0.0004,120]
[396208710,1764805856249,-1341.66,0.0004,30]
[396208711,1764805856259,-1298.0,0.00040005,7]
[396208712,1764805856268,-500.0,0.00040083,14]
[396208713,1764805856277,-500.0,0.00040083,14]
[396208714,1764805856287,-3040.619,0.00040173,57]
[396208715,1764805856297,-236.479,0.00040173,57]
[396208716,1764805856306,-151.0,0.00040226,30]
[396208717,1764805856316,-600.0,0.00040274,30]
[396208718,1764805856326,-1187.0,0.00040402,2]
[396208719,1764805856372,-151.0,0.00040448,14]
[396208720,1764805856382,-1187.0,0.00040451,2]
[396208721,1764805856391,-998.01085496,0.00040475,7]
[396208722,1764805856400,-443.31,0.000405,14]
[396208723,1764805856411,-436.77,0.000405,90]
[396208724,1764805856422,-676.31,0.000405,14]
[396208725,1764805856432,-600.0,0.00040548,30]
[396208726,1764805856442,-192.02,0.000406,14]
[396208727,1764805856451,-3172.09718186,0.00040606,15]
[396208728,1764805856460,-1381.04370185,0.00040606,2]
[396208729,1764805856470,-500.0,0.00040615,14]
[396208730,1764805856480,-1187.0,0.0004062,2]
[396208731,1764805856490,-267.46074303,0.00040652,30]
[396208732,1764805856499,-912.0,0.00040653,30]
[396208733,1764805856509,-156.7335532,0.00040686,7]
[396208734,1764805856518,-277.35679052,0.00040701,4]
[396208735,1764805856528,-229.27631267,0.00040701,4]
[396208736,1764805856538,-548.37,0.00040705,120]
[396208737,1764805856547,-548.37,0.00040705,120]
[396208738,1764805856557,-548.37,0.00040705,120]
[396208739,1764805856567,-548.37,0.00040705,120]
[396208740,1764805856576,-548.45,0.00040705,120]
[396208741,1764805856586,-501.9,0.00040705,120]
[396208742,1764805856597,-501.9,0.00040705,120]
[396208743,1764805856606,-501.9,0.00040705,120]
[396208744,1764805856616,-501.9,0.00040705,120]
[396208745,1764805856627,-502.02,0.00040705,120]
[396208746,1764805856639,-4494.56,0.00040705,2]
[396208747,1764805856649,-4494.56,0.00040705,2]
[396208748,1764805856659,-4494.56,0.00040705,2]
[396208749,1764805856668,-4494.56,0.00040705,2]
[396208750,1764805856678,-4494.69350937,0.00040705,2]
[396208751,1764805856687,-1298.0,0.00040706,2]
[396208752,1764805856697,-200.0,0.00040706,16]
[396208753,1764805856707,-207.4,0.00040706,16]
[396208754,1764805856716,-215.0738,0.00040706,16]
[396208755,1764805856726,-151.0,0.00040706,16]
[396208756,1764805856736,-177.5262,0.00040706,16]
[396208757,1764805856746,-151.0,0.00040706,16]
[396208758,1764805856756,-200.0,0.00040706,16]
[396208759,1764805856766,-151.0,0.00040706,16]
[396208760,1764805856776,-200.0,0.00040706,16]
[396208761,1764805856785,-200.0,0.00040706,16]
[396208762,1764805856794,-173.21142824,0.00040706,16]
[396208763,1764805856803,-500.0,0.00040706,16]
[396208764,1764805856813,-151.0,0.00040706,16]
[396208765,1764805856823,-151.0,0.00040706,16]
[396208766,1764805856832,-500.0,0.00040706,16]
[396208767,1764805856842,-151.0,0.00040706,16]
[396208768,1764805856851,-500.0,0.00040706,16]
[396208769,1764805856862,-151.0,0.00040706,16]
[396208770,1764805856871,-500.0,0.00040706,16]
[396208771,1764805856881,-151.0,0.00040706,16]
[396208772,1764805856891,-500.0,0.00040706,16]
[396208773,1764805856901,-151.0,0.00040706,16]
[396208774,1764805856911,-500.0,0.00040706,16]
[396208775,1764805856920,-151.0,0.00040706,16]
[396208776,1764805856930,-500.0,0.00040706,16]
[396208777,1764805856939,-151.0,0.00040706,16]
[396208778,1764805856948,-500.0,0.00040706,16]
[396208779,1764805856958,-151.0,0.00040706,16]
[396208780,1764805856968,-151.0,0.00040706,16]
[396208781,1764805856977,-500.0,0.00040706,16]
[396208782,1764805856986,-151.0,0.00040706,16]
[396208783,1764805856996,-151.0,0.00040706,16]
[396208784,1764805857005,-500.0,0.00040706,16]
[396208785,1764805857015,-500.0,0.00040706,16]
[396208786,1764805857024,-151.0,0.00040706,16]
[396208787,1764805857033,-237.3246584,0.00040706,16]
[396208788,1764805857043,-199.36600819,0.00040706,16]
[396208789,1764805857053,-500.0,0.00040706,16]
[396208790,1764805857063,-500.0,0.00040706,16]
[396208791,1764805857073,-151.0,0.00040706,16]
[396208792,1764805857082,-500.0,0.00040706,16]
[396208793,1764805857092,-574.12855637,0.00040706,16]
[396208794,1764805857102,-500.0,0.00040706,16]
[396208795,1764805857111,-578.20924308,0.00040706,16]
[396208796,1764805857121,-595.37131296,0.00040706,16]
[396208797,1764805857130,-500.0,0.00040706,16]
[396208798,1764805857140,-500.0,0.00040706,16]
[396208799,1764805857150,-585.06842477,0.00040706,16]
[396208800,1764805857159,-589.23050838,0.00040706,16]
[396208801,1764805857170,-500.0,0.00040706,16]
[396208802,1764805857185,-209.40437684,0.00040706,16]
[396208803,1764805857194,-500.0,0.00040706,16]
[396208804,1764805857203,-200.0,0.00040706,16]
[396208805,1764805857216,-216.34272766,0.00040706,16]
[396208806,1764805857226,-500.0,0.00040706,16]
[396208807,1764805857236,-200.0,0.00040706,16]
[396208808,1764805857245,-500.0,0.00040706,16]
[396208809,1764805857255,-200.0,0.00040706,16]
[396208810,1764805857266,-500.0,0.00040706,16]
[396208811,1764805857277,-200.0,0.00040706,16]
[396208812,1764805857288,-500.0,0.00040706,16]
[396208813,1764805857298,-500.0,0.00040706,16]
[396208814,1764805857307,-500.0,0.00040706,16]
[396208815,1764805857316,-151.0,0.00040706,16]
[396208816,1764805857325,-500.0,0.00040706,16]
[396208817,1764805857334,-156.587,0.00040706,16]
[396208818,1764805857343,-500.0,0.00040706,16]
[396208819,1764805857352,-162.380719,0.00040706,16]
[396208820,1764805857361,-500.0,0.00040706,16]
[396208821,1764805857371,-518.5,0.00040706,16]
[396208822,1764805857380,-168.3888056,0.00040706,16]
[396208823,1764805857390,-537.6845,0.00040706,16]
[396208824,1764805857399,-174.61919141,0.00040706,16]
[396208825,1764805857408,-557.5788265,0.00040706,16]
[396208826,1764805857417,-181.08010149,0.00040706,16]
[396208827,1764805857426,-578.20924308,0.00040706,16]
[396208828,1764805857435,-187.78006525,0.00040706,16]
[396208829,1764805857444,-219.43106371,0.00040706,16]
[396208830,1764805857454,-194.72792766,0.00040706,16]
[396208831,1764805857463,-800.0,0.00040706,16]
[396208832,1764805857472,-2000.0,0.00040706,16]
[396208833,1764805857481,-151.0,0.00040706,16]
[396208834,1764805857491,-201.93286099,0.00040706,16]
[396208835,1764805857500,-151.0,0.00040706,16]
[396208836,1764805857509,-500.0,0.00040706,16]
[396208837,1764805857518,-800.0,0.00040706,16]
[396208838,1764805857528,-2000.0,0.00040706,16]
[396208839,1764805857537,-209.40437684,0.00040706,16]
[396208840,1764805857546,-151.0,0.00040706,16]
[396208841,1764805857555,-500.0,0.00040706,16]
[396208842,1764805857565,-1000.0,0.00040706,16]
[396208843,1764805857575,-800.0,0.00040706,16]
[396208844,1764805857584,-2000.0,0.00040706,16]
[396208845,1764805857594,-217.15233878,0.00040706,16]
[396208846,1764805857603,-151.0,0.00040706,16]
[396208847,1764805857613,-800.0,0.00040706,16]
[396208848,1764805857623,-1000.0,0.00040706,16]
[396208849,1764805857632,-500.0,0.00040706,16]
[396208850,1764805857642,-2000.0,0.00040706,16]
[396208851,1764805857651,-225.18697532,0.00040706,16]
[396208852,1764805857661,-800.0,0.00040706,16]
[396208853,1764805857671,-750.0,0.00040706,16]
[396208854,1764805857680,-500.0,0.00040706,16]
[396208855,1764805857690,-2000.0,0.00040706,16]
[396208856,1764805857699,-383.71195953,0.00040706,16]
[396208857,1764805857708,-800.0,0.00040706,16]
[396208858,1764805857717,-500.0,0.00040706,16]
[396208859,1764805857727,-2000.0,0.00040706,16]
[396208860,1764805857737,-500.0,0.00040706,16]
[396208861,1764805857747,-2000.0,0.00040706,16]
[396208862,1764805857757,-800.0,0.00040706,16]
[396208863,1764805857767,-500.0,0.00040706,16]
[396208864,1764805857777,-2000.0,0.00040706,16]
[396208865,1764805857787,-800.0,0.00040706,16]
[396208866,1764805857796,-2000.0,0.00040706,16]
[396208867,1764805857806,-500.0,0.00040706,16]
[396208868,1764805857816,-2000.0,0.00040706,16]
[396208869,1764805857826,-500.0,0.00040706,16]
[396208870,1764805857835,-569.85170231,0.00040706,16]
[396208871,1764805857846,-620.0,0.00040706,16]
[396208872,1764805857855,-500.0,0.00040706,16]
[396208873,1764805857865,-2000.0,0.00040706,16]
[396208874,1764805857874,-1000.0,0.00040706,16]
[396208875,1764805857885,-642.94,0.00040706,16]
[396208876,1764805857895,-500.0,0.00040706,16]
[396208877,1764805857904,-1000.0,0.00040706,16]
[396208878,1764805857914,-666.72878,0.00040706,16]
[396208879,1764805857924,-1000.0,0.00040706,16]
[396208880,1764805857934,-220.0,0.00040706,16]
[396208881,1764805857944,-250.38259814,0.00040706,16]
[396208882,1764805857954,-1000.0,0.00040706,16]
[396208883,1764805857963,-220.0,0.00040706,16]
[396208884,1764805857973,-1000.0,0.00040706,16]
[396208885,1764805857982,-220.0,0.00040706,16]
[396208886,1764805857993,-151.0,0.00040706,16]
[396208887,1764805858002,-1000.0,0.00040706,16]
[396208888,1764805858012,-220.0,0.00040706,16]
[396208889,1764805858021,-220.0,0.00040706,16]
[396208890,1764805858030,-1000.0,0.00040706,16]
[396208891,1764805858040,-220.0,0.00040706,16]
[396208892,1764805858049,-500.0,0.00040706,16]
[396208893,1764805858058,-1000.0,0.00040706,16]
[396208894,1764805858068,-224.8672888,0.00040706,16]
[396208895,1764805858077,-500.0,0.00040706,16]
[396208896,1764805858086,-1000.0,0.00040706,16]
[396208897,1764805858096,-1000.0,0.00040706,16]
[396208898,1764805858106,-500.0,0.00040706,16]
[396208899,1764805858115,-500.0,0.00040706,16]
[396208900,1764805858126,-1000.0,0.00040706,16]
[396208901,1764805858136,-500.0,0.00040706,16]
[396208902,1764805858145,-500.0,0.00040706,16]
[396208903,1764805858155,-500.0,0.00040706,16]
[396208904,1764805858164,-500.0,0.00040706,16]
[396208905,1764805858178,-500.0,0.00040706,16]
[396208906,1764805858187,-567.68063853,0.00040706,16]
[396208907,1764805858196,-500.0,0.00040706,16]
[396208908,1764805858205,-4000.0,0.00040706,16]
[396208909,1764805858215,-250.0,0.00040706,16]
[396208910,1764805858224,-500.0,0.00040706,16]
[396208911,1764805858234,-4000.0,0.00040706,16]
[396208912,1764805858244,-250.0,0.00040706,16]
[396208913,1764805858255,-4000.0,0.00040706,16]
[396208914,1764805858264,-500.0,0.00040706,16]
[396208915,1764805858273,-164.68603605,0.00040706,16]
[396208916,1764805858284,-4000.0,0.00040706,16]
[396208917,1764805858294,-572.86954681,0.00040706,16]
[396208918,1764805858303,-4000.0,0.00040706,16]
[396208919,1764805858312,-4000.0,0.00040706,16]
[396208920,1764805858321,-4000.0,0.00040706,16]
[396208921,1764805858332,-1500.0,0.00040706,16]
[396208922,1764805858341,-500.0,0.00040706,16]
[396208923,1764805858350,-500.0,0.00040706,16]
[396208924,1764805858359,-500.0,0.00040706,16]
[396208925,1764805858368,-500.0,0.00040706,16]
[396208926,1764805858377,-500.0,0.00040706,16]
[396208927,1764805858387,-500.0,0.00040706,16]
[396208928,1764805858396,-500.0,0.00040706,16]
[396208929,1764805858406,-500.0,0.00040706,16]
[396208930,1764805858416,-280.83383746,0.00040706,16]
[396208931,1764805858425,-1000.0,0.00040711,2]
[396208932,1764805858434,-500.0,0.00040712,120]
[396208933,1764805858444,-200.0,0.00040712,7]
[396208934,1764805858452,-153.0,0.00040712,14]
[396208935,1764805858462,-153.0,0.00040712,14]
[396208936,1764805858471,-153.0,0.00040712,14]
[396208937,1764805858480,-153.0,0.00040712,14]
[396208938,1764805858488,-153.0,0.00040712,14]
[396208939,1764805858497,-153.0,0.00040712,14]
[396208940,1764805858507,-153.0,0.00040712,14]
[396208941,1764805858516,-153.0,0.00040712,14]
[396208942,1764805858525,-225.46748119,0.00040712,14]
[396208943,1764805858535,-583.64397328,0.00040712,2]
[396208944,1764805858544,-329.45959343,0.00040712,2]
[396208945,1764805858553,-157.0,0.00040712,14]
[396208946,1764805858562,-152.0,0.00040712,14]
[396208947,1764805858571,-152.0,0.00040712,14]
[396208948,1764805858581,-152.0,0.00040712,14]
[396208949,1764805858590,-152.0,0.00040712,14]
[396208950,1764805858599,-152.0,0.00040712,14]
[396208951,1764805858609,-152.0,0.00040712,14]
[396208952,1764805858618,-152.0,0.00040712,14]
[396208953,1764805858627,-152.0,0.00040712,14]
[396208954,1764805858637,-152.0,0.00040712,14]
[396208955,1764805858647,-152.0,0.00040712,14]
[396208956,1764805858656,-152.0,0.00040712,14]
[396208957,1764805858665,-152.0,0.00040712,14]
[396208958,1764805858674,-152.0,0.00040712,14]
[396208959,1764805858683,-152.0,0.00040712,14]
[396208960,1764805858693,-152.0,0.00040712,14]
[396208961,1764805858702,-737.46005421,0.00040767,2]
[396208962,1764805858711,-1000.0,0.00040796,2]
[396208963,1764805858721,-151.0,0.00040805,14]
[396208964,1764805858731,-1000.0,0.00040807,2]
[396208965,1764805858740,-1000.0,0.00040807,2]
[396208966,1764805858750,-997.84244113,0.00040807,2]
[396208967,1764805858760,-182.53259267,0.00040808,30]
[396208968,1764805858769,-907234.33580493,0.00040808,2]
[396208969,1764805858779,-151.0,0.00040808,30]
[396208970,1764805858789,-516.307971,0.00040808,120]
[396208971,1764805858798,-516.307971,0.00040808,120]
[396208972,1764805858807,-516.307971,0.00040808,120]
[396208973,1764805858816,-516.307973,0.00040808,120]
[396208974,1764805858826,-151.0,0.00040808,14]
[396208975,1764805858835,-151.0,0.00040808,120]
[396208976,1764805858845,-272.018054,0.00040808,120]
[396208977,1764805858854,-272.018054,0.00040808,120]
[396208978,1764805858863,-272.018054,0.00040808,120]
[396208979,1764805858872,-272.018057,0.00040808,120]
[396208980,1764805858882,-151.0,0.00040808,120]
[396208981,1764805858891,-1381.04370182,0.00040815,2]
[396208982,1764805858900,-974.24960482,0.00040821,20]
[396208983,1764805858910,-600.0,0.00040822,30]
[396208984,1764805858919,-233.79204979,0.00040847,2]
[396208985,1764805858929,-500.0,0.00040889,14]
[396208986,1764805858938,-166.66,0.00040907,2]
[396208987,1764805858948,-7274.55841275,0.00040934,2]
[396208988,1764805858958,-733.06836618,0.00040959,2]
[396208989,1764805858968,-1500.0,0.00040959,2]
[396208990,1764805858977,-1500.0,0.00040959,2]
[396208991,1764805858987,-1500.0,0.00040959,2]
[396208992,1764805858997,-257.91778498,0.00040999,30]
[396208993,1764805859007,-2000.0,0.00041,120]
[396208994,1764805859016,-214.64,0.00041,120]
[396208995,1764805859026,-99999.999999,0.00041,30]
[396208996,1764805859035,-21562.59459494,0.00041,120]
[396208997,1764805859044,-1381.04370182,0.00041024,2]
[396208998,1764805859054,-1298.0,0.0004106,2]
[396208999,1764805859064,-300.0,0.00041068,22]
[396209000,1764805859073,-912.0,0.00041072,30]
[396209001,1764805859084,-163.0,0.00041082,14]
[396209002,1764805859093,-163.0,0.00041082,14]
[396209003,1764805859103,-163.0,0.00041082,14]
[396209004,1764805859112,-174.23068389,0.00041082,14]
[396209005,1764805859121,-156.0,0.00041082,14]
[396209006,1764805859130,-156.0,0.00041082,14]
[396209007,1764805859139,-156.0,0.00041082,14]
[396209008,1764805859148,-159.05008878,0.00041082,14]
[396209009,1764805859157,-248.71531821,0.00041083,30]
[396209010,1764805859166,-239.84119403,0.00041094,30]
[396209011,1764805859177,-500.0,0.00041095,15]
[396209012,1764805859188,-500.0,0.00041095,15]
[396209013,1764805859197,-500.0,0.00041095,15]
[396209014,1764805859206,-500.0,0.00041095,15]
[396209015,1764805859216,-500.0,0.00041095,15]
[396209016,1764805859225,-500.0,0.00041095,15]
[396209017,1764805859234,-500.0,0.00041095,15]
[396209018,1764805859243,-500.0,0.00041095,15]
[396209019,1764805859254,-500.0,0.00041095,15]
[396209020,1764805859263,-500.0,0.00041095,15]
[396209021,1764805859273,-500.0,0.00041095,15]
[396209022,1764805859283,-500.0,0.00041095,15]
[396209023,1764805859292,-500.0,0.00041095,15]
[396209024,1764805859301,-500.0,0.00041095,15]
[396209025,1764805859311,-500.0,0.00041095,15]
[396209026,1764805859321,-500.0,0.00041095,15]
[396209027,1764805859331,-500.0,0.00041095,15]
[396209028,1764805859340,-500.0,0.00041095,15]
[396209029,1764805859350,-1139.12,0.00041095,120]
[396209030,1764805859359,-1139.12,0.00041095,120]
[396209031,1764805859369,-1139.12,0.00041095,120]
[396209032,1764805859379,-1139.12,0.00041095,120]
[396209033,1764805859388,-1139.12,0.00041095,120]
[396209034,1764805859398,-1139.12,0.00041095,120]
[396209035,1764805859407,-1139.12,0.00041095,120]
[396209036,1764805859417,-1139.12,0.00041095,120]
[396209037,1764805859427,-1139.12,0.00041095,120]
[396209038,1764805859436,-1139.12,0.00041095,120]
[396209039,1764805859446,-1139.12,0.00041095,120]
[396209040,1764805859455,-1139.12,0.00041095,120]
[396209041,1764805859465,-1139.12,0.00041095,120]
[396209042,1764805859474,-1139.12,0.00041095,120]
[396209043,1764805859483,-1139.12,0.00041095,120]
[396209044,1764805859493,-1139.12,0.00041095,120]
[396209045,1764805859503,-1139.12,0.00041095,120]
[396209046,1764805859512,-1139.12,0.00041095,120]
[396209047,1764805859522,-1139.12,0.00041095,120]
[396209048,1764805859531,-1139.12,0.00041095,120]
[396209049,1764805859541,-1139.12,0.00041095,120]
[396209050,1764805859550,-1139.12,0.00041095,120]
[396209051,1764805859560,-1139.12,0.00041095,120]
[396209052,1764805859569,-1139.23804555,0.00041095,120]
[396209053,1764805859579,-600.0,0.00041096,30]
[396209054,1764805859588,-500.0,0.00041096,35]
[396209055,1764805859599,-307.57,0.00041096,2]
[396209056,1764805859609,-1000.0,0.00041096,2]
[396209057,1764805859618,-1585.0,0.00041096,120]
[396209058,1764805859628,-500.0,0.00041096,120]
[396209059,1764805859638,-1200.0,0.000411,2]
[396209060,1764805859647,-594.72927088,0.000411,2]
[396209061,1764805859657,-449.18625227,0.000411,2]
[396209062,1764805859667,-200.0,0.00041119,7]
[396209063,1764805859676,-500.0,0.00041163,30]
[396209064,1764805859686,-5000.0,0.000412,120]
[396209065,1764805859695,-1000.0,0.00041233,2]
[396209066,1764805859704,-1585.0,0.00041233,120]
[396209067,1764805859713,-500.0,0.00041233,120]
[396209068,1764805859723,-1381.04370182,0.00041234,2]
[396209069,1764805859732,-1187.0,0.00041252,2]
[396209070,1764805859741,-600.0,0.0004137,120]
[396209071,1764805859751,-1000.0,0.0004137,2]
[396209072,1764805859760,-1585.0,0.0004137,120]
[396209073,1764805859770,-500.0,0.0004137,120]
[396209074,1764805859779,-1300.0,0.00041378,7]
[396209075,1764805859789,-500.0,0.00041437,30]
[396209076,1764805859798,-1381.04370182,0.00041443,2]
[396209077,1764805859808,-1000.0,0.00041455,14]
[396209078,1764805859817,-1187.0,0.00041482,2]
[396209079,1764805859827,-912.0,0.00041491,30]
[396209080,1764805859835,-1000.0,0.00041507,2]
[396209081,1764805859843,-1585.0,0.00041507,120]
[396209082,1764805859853,-500.0,0.00041507,120]
[396209083,1764805859863,-2000.0,0.00041518,3]
[396209084,1764805859872,-661.1771,0.00041518,3]
[396209085,1764805859882,-200.0,0.0004153,7]
[396209086,1764805859892,-1187.0,0.00041549,7]
[396209087,1764805859902,-514.27,0.00041573,30]
[396209088,1764805859912,-514.27,0.00041573,30]
[396209089,1764805859921,-514.27,0.00041573,30]
[396209090,1764805859930,-514.27,0.00041573,30]
[396209091,1764805859940,-153.89749256,0.00041628,4]
[396209092,1764805859949,-600.0,0.00041644,120]
[396209093,1764805859959,-1000.0,0.00041644,2]
[396209094,1764805859968,-1585.0,0.00041644,120]
[396209095,1764805859978,-500.0,0.00041644,120]
[396209096,1764805859997,-712.36507185,0.00041652,2]
[396209097,1764805860008,-173.82837655,0.00041652,120]
[396209098,1764805860018,-986.94743339,0.00041652,28]
[396209099,1764805860027,-1381.04370182,0.00041652,2]
[396209100,1764805860037,-157.06206171,0.00041652,30]
[396209101,1764805860047,-231.28369723,0.00041696,30]
[396209102,1764805860057,-443.31,0.000417,14]
[396209103,1764805860068,-1000.0,0.000417,7]
[396209104,1764805860077,-300.0,0.00041704,30]
[396209105,1764805860087,-300.0,0.00041704,30]
[396209106,1764805860098,-300.0,0.00041704,30]
[396209107,1764805860108,-500.0,0.00041711,30]
[396209108,1764805860118,-314.50635683,0.0004172,30]
[396209109,1764805860129,-300.0,0.0004172,30]
[396209110,1764805860139,-300.0,0.0004172,30]
[396209111,1764805860149,-223.0315306,0.00041725,30]
[396209112,1764805860158,-200.0,0.00041726,120]
[396209113,1764805860169,-215.0738,0.00041726,30]
[396209114,1764805860181,-500.0,0.00041727,60]
[396209115,1764805860192,-500.0,0.00041727,60]
[396209116,1764805860203,-1999.0,0.00041729,14]
[396209117,1764805860213,-300.0,0.0004173,30]
[396209118,1764805860223,-300.0,0.0004173,30]
[396209119,1764805860233,-500.0,0.00041738,120]
[396209120,1764805860243,-1179.84948755,0.00041752,31]
[396209121,1764805860254,-34911.82375929,0.00041752,33]
[396209122,1764805860264,-326.74367779,0.00041752,30]
[396209123,1764805860274,-326.74367779,0.00041752,30]
[396209124,1764805860284,-14437.88533781,0.00041752,30]
[396209125,1764805860294,-14437.88533781,0.00041752,30]
[396209126,1764805860304,-14437.88533781,0.00041752,30]
[396209127,1764805860314,-14437.88533781,0.00041752,30]
[396209128,1764805860324,-481377.89598895,0.00041752,7]
[396209129,1764805860335,-8139993.37985228,0.00041752,7]
[396209130,1764805860543,-419.73193041,0.00041752,7]
[396209131,1764805860931,-324.71782894,0.00031876,2]
[396209132,1764805860942,-248.50668651,0.000372,120]
[396209133,1764805860953,-246.80243856,0.00041652,8]
[396209134,1764805860966,-39.40837864,0.00041652,8]
[396209135,1764805860979,-2162.97665473,0.00041752,7]
[396209136,1764805860994,-468.53617814,0.00041752,7]
[396209137,1764805861264,-3024.44293944,0.00041752,7]
[396209138,1764805861276,-478.87583448,0.00041752,7]
[396209139,1764805861426,-323.99220019,0.00041752,7]
[396209140,1764805861439,-3948.6716955,0.00041752,7]
[396209141,1764805861451,-1141.6,0.00041752,7]
[396209142,1764805861485,-3555.64149693,0.00041752,7]
[396209149,1764806214452,-500.0,0.00015873,2]
[396209150,1764806214474,-500.0,0.00015873,2]